fUSD/lending_fUSD_20250720
["ID","MTS","AMOUNT","RATE_DAILY","PERIOD"]
[373399231,1752985852096,-716.04,0.00019178,2]
[373399232,1752985852105,-516.52157275,0.00019178,2]
[373399233,1752985852114,-480.0,0.00019178,2]
[373399234,1752985852124,-939.8,0.00019178,2]
[373399235,1752985852133,-2719.83,0.00019178,2]
[373399236,1752985852143,-643.53,0.00019178,2]
[373399237,1752985852153,-1228.86,0.00019178,2]
[373399238,1752985852162,-509.7,0.00019178,2]
[373399239,1752985852172,-480.0,0.00019178,2]
[373399240,1752985852181,-486.81362726,0.00019178,2]
[373399241,1752985852191,-480.0,0.00019178,2]
[373399242,1752985852200,-480.0,0.00019178,2]
[373399243,1752985852210,-480.0,0.00019178,2]
[373399244,1752985852220,-512.31133034,0.00019178,2]
[373399245,1752985852229,-1983.83,0.00019178,2]
[373399246,1752985852238,-705.2,0.00019178,2]
[373399247,1752985852247,-480.0,0.00019178,2]
[373399248,1752985852256,-480.0,0.00019178,2]
[373399249,1752985852266,-489.09,0.00019178,2]
[373399250,1752985852275,-480.0,0.00019178,2]
[373399251,1752985852284,-300.0,0.00019178,2]
[373399252,1752985852293,-942.05,0.00019178,2]
[373399253,1752985852304,-692.08,0.00019178,2]
[373399254,1752985852313,-480.0,0.00019178,2]
[373399255,1752985852323,-480.0,0.00019178,2]
[373399256,1752985852332,-1579.23,0.00019178,2]
[373399257,1752985852341,-480.0,0.00019178,2]
[373399258,1752985852351,-480.0,0.00019178,2]
[373399259,1752985852360,-480.0,0.00019178,2]
[373399260,1752985852370,-1218.87,0.00019178,2]
[373399261,1752985852379,-500.0,0.00019178,2]
[373399262,1752985852388,-480.0,0.00019178,2]
[373399263,1752985852397,-480.0,0.00019178,2]
[373399264,1752985852406,-683.25,0.00019178,2]
[373399265,1752985852416,-8380.53,0.00019178,2]
[373399266,1752985852425,-595.35,0.00019178,2]
[373399267,1752985852434,-1022.42,0.00019178,2]
[373399268,1752985852443,-480.0,0.00019178,2]
[373399269,1752985852453,-500.78654727,0.00019178,2]
[373399270,1752985852462,-480.0,0.00019178,2]
[373399271,1752985852472,-877.94,0.00019178,2]
[373399272,1752985852482,-1022.41,0.00019178,2]
[373399273,1752985852494,-480.0,0.00019178,2]
[373399274,1752985852505,-480.0,0.00019178,2]
[373399275,1752985852514,-1088.7,0.00019178,2]
[373399276,1752985852523,-917.66,0.00019178,2]
[373399277,1752985852532,-526.02,0.00019178,2]
[373399278,1752985852541,-480.0,0.00019178,2]
[373399279,1752985852551,-480.0,0.00019178,2]
[373399280,1752985852561,-480.0,0.00019178,2]
[373399281,1752985852570,-2256.23,0.00019178,2]
[373399282,1752985852579,-686.92,0.00019178,2]
[373399283,1752985852588,-3140.62,0.00019178,2]
[373399284,1752985852598,-480.0,0.00019178,2]
[373399285,1752985852607,-480.0,0.00019178,2]
[373399286,1752985852616,-500.0,0.00019178,2]
[373399287,1752985852626,-2321.86,0.00019178,2]
[373399288,1752985852635,-576.39,0.00019178,2]
[373399289,1752985852644,-480.0,0.00019178,2]
[373399290,1752985852653,-480.0,0.00019178,2]
[373399291,1752985852662,-480.0,0.00019178,2]
[373399292,1752985852671,-1316.12,0.00019178,2]
[373399293,1752985852680,-480.0,0.00019178,2]
[373399294,1752985852689,-480.0,0.00019178,2]
[373399295,1752985852699,-480.0,0.00019178,2]
[373399296,1752985852708,-480.0,0.00019178,2]
[373399297,1752985852717,-23433.38,0.00019178,2]
[373399298,1752985852727,-1076.96,0.00019178,2]
[373399299,1752985852736,-480.0,0.00019178,2]
[373399300,1752985852746,-523.74,0.00019178,2]
[373399301,1752985852755,-1238.86,0.00019178,2]
[373399302,1752985852765,-849.63,0.00019178,2]
[373399303,1752985852774,-480.0,0.00019178,2]
[373399304,1752985852783,-480.0,0.00019178,2]
[373399305,1752985852792,-2066.23,0.00019178,2]
[373399306,1752985852802,-480.0,0.00019178,2]
[373399307,1752985852811,-718.09,0.00019178,2]
[373399308,1752985852820,-480.0,0.00019178,2]
[373399309,1752985852830,-480.0,0.00019178,2]
[373399310,1752985852839,-643.65,0.00019178,2]
[373399311,1752985852849,-480.0,0.00019178,2]
[373399312,1752985852858,-480.0,0.00019178,2]
[373399313,1752985852868,-670.62,0.00019178,2]
[373399314,1752985852878,-480.0,0.00019178,2]
[373399315,1752985852887,-480.0,0.00019178,2]
[373399316,1752985852896,-2611.68,0.00019178,2]
[373399317,1752985852906,-500.0,0.00019178,2]
[373399318,1752985852915,-416.1,0.00019178,2]
[373399319,1752985852926,-535.04,0.00019178,2]
[373399320,1752985852939,-480.0,0.00019178,2]
[373399321,1752985852948,-1974.05,0.00019178,2]
[373399322,1752985852958,-480.0,0.00019178,2]
[373399323,1752985852968,-480.0,0.00019178,2]
[373399324,1752985852979,-1386.5,0.00019178,2]
[373399325,1752985852988,-674.55,0.00019178,2]
[373399326,1752985852997,-2860.8,0.00019178,2]
[373399327,1752985853008,-994.9,0.00019178,2]
[373399328,1752985853017,-1091.76,0.00019178,2]
[373399329,1752985853027,-524.18,0.00019178,2]
[373399330,1752985853036,-480.0,0.00019178,2]
[373399331,1752985853046,-480.0,0.00019178,2]
[373399332,1752985853056,-480.0,0.00019178,2]
[373399333,1752985853065,-466.04854181,0.00019178,2]
[373399334,1752985853075,-480.0,0.00019178,2]
[373399335,1752985853085,-480.0,0.00019178,2]
[373399336,1752985853094,-535.97,0.00019178,2]
[373399337,1752985853104,-480.0,0.00019178,2]
[373399338,1752985853113,-480.0,0.00019178,2]
[373399339,1752985853123,-480.0,0.00019178,2]
[373399340,1752985853132,-609.82,0.00019178,2]
[373399341,1752985853142,-467.47546721,0.00019178,2]
[373399342,1752985853151,-1576.72,0.00019178,2]
[373399343,1752985853161,-500.0,0.00019178,2]
[373399344,1752985853170,-1166.8,0.00019178,2]
[373399345,1752985853180,-621.95,0.00019178,2]
[373399346,1752985853190,-1094.46,0.00019178,2]
[373399347,1752985853199,-490.14,0.00019178,2]
[373399348,1752985853208,-3302.0,0.00019178,2]
[373399349,1752985853218,-761.75,0.00019178,2]
[373399350,1752985853227,-480.0,0.00019178,2]
[373399351,1752985853237,-605.54,0.00019178,2]
[373399352,1752985853246,-515.04234354,0.00019178,2]
[373399353,1752985853256,-516.88,0.00019178,2]
[373399354,1752985853265,-904.97,0.00019178,2]
[373399355,1752985853275,-202.954695,0.00019178,2]
[373399356,1752985853284,-480.0,0.00019178,2]
[373399357,1752985853294,-927.36,0.00019178,2]
[373399358,1752985853303,-1345.12,0.00019178,2]
[373399359,1752985853313,-480.0,0.00019178,2]
[373399360,1752985853323,-682.2,0.00019178,2]
[373399361,1752985853333,-1115.35,0.00019178,2]
[373399362,1752985853342,-480.0,0.00019178,2]
[373399363,1752985853352,-528.11664542,0.00019178,2]
[373399364,1752985853362,-480.0,0.00019178,2]
[373399365,1752985853371,-173.793156,0.00019178,2]
[373399366,1752985853381,-174.845143,0.00019178,2]
[373399367,1752985853390,-151.0,0.00019178,2]
[373399368,1752985853400,-480.0,0.00019178,2]
[373399369,1752985853410,-602.96,0.00019178,2]
[373399370,1752985853420,-480.0,0.00019178,2]
[373399371,1752985853430,-480.0,0.00019178,2]
[373399372,1752985853439,-465.07324151,0.00019178,2]
[373399373,1752985853449,-1410.3,0.00019178,2]
[373399374,1752985853458,-480.0,0.00019178,2]
[373399375,1752985853468,-510.5985506,0.00019178,2]
[373399376,1752985853477,-2554.55,0.00019178,2]
[373399377,1752985853487,-480.0,0.00019178,2]
[373399378,1752985853497,-1061.26,0.00019178,2]
[373399379,1752985853506,-480.0,0.00019178,2]
[373399380,1752985853515,-558.52,0.00019178,2]
[373399381,1752985853525,-603.46,0.00019178,2]
[373399382,1752985853535,-480.0,0.00019178,2]
[373399383,1752985853545,-252.21005421,0.00019178,2]
[373399384,1752985853555,-720.07,0.00019178,2]
[373399385,1752985853565,-480.0,0.00019178,2]
[373399386,1752985853575,-480.0,0.00019178,2]
[373399387,1752985853585,-480.0,0.00019178,2]
[373399388,1752985853595,-480.0,0.00019178,2]
[373399389,1752985853605,-500.0,0.00019178,2]
[373399390,1752985853615,-480.0,0.00019178,2]
[373399391,1752985853625,-480.0,0.00019178,2]
[373399392,1752985853635,-378.0,0.00019178,2]
[373399393,1752985853644,-2188.05944,0.00019178,2]
[373399394,1752985853654,-480.0,0.00019178,2]
[373399395,1752985853664,-510.79442301,0.00019178,2]
[373399396,1752985853677,-1108.39,0.00019178,2]
[373399397,1752985853687,-480.0,0.00019178,2]
[373399398,1752985853696,-348.0860357,0.00019178,2]
[373399399,1752985853706,-480.0,0.00019178,2]
[373399400,1752985853716,-520.33435282,0.00019178,2]
[373399401,1752985853726,-480.0,0.00019178,2]
[373399402,1752985853735,-159.00103633,0.00019178,2]
[373399403,1752985853745,-480.0,0.00019178,2]
[373399404,1752985853755,-1259.37,0.00019178,2]
[373399405,1752985853764,-1847.93,0.00019178,2]
[373399406,1752985853773,-500.0,0.00019178,2]
[373399407,1752985853783,-480.0,0.00019178,2]
[373399408,1752985853973,-480.0,0.00019178,2]
[373399409,1752985853983,-3699.99,0.00019178,2]
[373399410,1752985853993,-1682.84,0.00019178,2]
[373399411,1752985854003,-801.34,0.00019178,2]
[373399412,1752985854012,-462.18836112,0.00019178,2]
[373399413,1752985854021,-480.0,0.00019178,2]
[373399414,1752985854031,-698.39,0.00019178,2]
[373399415,1752985854040,-480.0,0.00019178,2]
[373399416,1752985854049,-480.0,0.00019178,2]
[373399417,1752985854059,-480.0,0.00019178,2]
[373399418,1752985854069,-502.02,0.00019178,2]
[373399419,1752985854078,-480.0,0.00019178,2]
[373399420,1752985854087,-502.02,0.00019178,2]
[373399421,1752985854097,-480.0,0.00019178,2]
[373399422,1752985854106,-1029.14,0.00019178,2]
[373399423,1752985854116,-480.0,0.00019178,2]
[373399424,1752985854125,-480.0,0.00019178,2]
[373399425,1752985854135,-480.0,0.00019178,2]
[373399426,1752985854145,-480.0,0.00019178,2]
[373399427,1752985854154,-2021.11,0.00019178,2]
[373399428,1752985854164,-151.0,0.00019178,2]
[373399429,1752985854174,-1103.01,0.00019178,2]
[373399430,1752985854183,-500.0,0.00019178,2]
[373399431,1752985854192,-500.0,0.00019178,2]
[373399432,1752985854202,-151.0,0.00019178,2]
[373399433,1752985854211,-480.0,0.00019178,2]
[373399434,1752985854221,-400.15619824,0.00019178,2]
[373399435,1752985854230,-605.38232422,0.00019178,2]
[373399436,1752985854241,-480.0,0.00019178,2]
[373399437,1752985854250,-577.41,0.00019178,2]
[373399438,1752985854259,-480.0,0.00019178,2]
[373399439,1752985854268,-3396.66,0.00019178,2]
[373399440,1752985854277,-1000.0,0.00019178,2]
[373399441,1752985854286,-504.32890686,0.00019178,2]
[373399442,1752985854295,-480.0,0.00019178,2]
[373399443,1752985854305,-480.0,0.00019178,2]
[373399444,1752985854315,-480.0,0.00019178,2]
[373399445,1752985854324,-480.0,0.00019178,2]
[373399446,1752985854333,-766.38,0.00019178,2]
[373399447,1752985854342,-500.0,0.00019178,2]
[373399448,1752985854351,-480.0,0.00019178,2]
[373399449,1752985854361,-480.0,0.00019178,2]
[373399450,1752985854370,-480.0,0.00019178,2]
[373399451,1752985854379,-480.0,0.00019178,2]
[373399452,1752985854388,-738.23,0.00019178,2]
[373399453,1752985854398,-480.0,0.00019178,2]
[373399454,1752985854408,-480.0,0.00019178,2]
[373399455,1752985854417,-500.0,0.00019178,2]
[373399456,1752985854426,-480.0,0.00019178,2]
[373399457,1752985854436,-480.0,0.00019178,2]
[373399458,1752985854445,-531.0,0.00019178,2]
[373399459,1752985854455,-1123.0,0.00019178,2]
[373399460,1752985854465,-480.0,0.00019178,2]
[373399461,1752985854474,-480.0,0.00019178,2]
[373399462,1752985854484,-480.0,0.00019178,2]
[373399463,1752985854493,-151.0,0.00019178,2]
[373399464,1752985854502,-310.81,0.00019178,2]
[373399465,1752985854511,-29590.21891239,0.00019178,2]
[373399466,1752985854521,-210.86573235,0.00019203,2]
[373399467,1752985854532,-839.31074571,0.00019203,2]
[373399468,1752985854542,-160.0,0.00019203,2]
[373399469,1752985854551,-476.8747822,0.00019203,2]
[373399470,1752985854561,-721.15,0.0001921,2]
[373399471,1752985854570,-1280.45305644,0.00019229,2]
[373399472,1752985854580,-591.99984151,0.00019245,2]
[373399473,1752985854590,-1252.63199579,0.00019251,2]
[373399474,1752985854599,-501.98563145,0.00019273,2]
[373399475,1752985854609,-500.96090838,0.00019273,2]
[373399476,1752985854619,-500.0,0.00019273,2]
[373399477,1752985854628,-521.11491957,0.00019273,2]
[373399478,1752985854638,-584.47,0.00019286,2]
[373399479,1752985854648,-500.0,0.00019286,2]
[373399480,1752985854657,-671.06,0.00019286,2]
[373399481,1752985854667,-502.02,0.00019286,2]
[373399482,1752985854677,-959.97,0.00019287,2]
[373399483,1752985854687,-520.0,0.00019287,2]
[373399484,1752985854696,-480.0,0.00019287,2]
[373399485,1752985854706,-410.499364,0.00019287,2]
[373399486,1752985854716,-480.0,0.00019287,2]
[373399487,1752985854725,-318.620782,0.00019287,2]
[373399488,1752985854735,-511.220986,0.00019287,2]
[373399489,1752985854745,-480.0,0.00019287,2]
[373399490,1752985854754,-480.0,0.00019287,2]
[373399491,1752985854764,-480.0,0.00019287,2]
[373399492,1752985854773,-331.03390741,0.00019287,2]
[373399493,1752985854783,-480.0,0.00019287,2]
[373399494,1752985854793,-480.0,0.00019287,2]
[373399495,1752985854803,-480.0,0.00019287,2]
[373399496,1752985854812,-388.68237099,0.00019287,2]
[373399497,1752985854822,-563.97,0.00019287,2]
[373399498,1752985854831,-152.221737,0.00019287,2]
[373399499,1752985854841,-520.0,0.00019287,2]
[373399500,1752985854851,-480.0,0.00019287,2]
[373399501,1752985854861,-500.0,0.00019287,2]
[373399502,1752985854870,-480.0,0.00019287,2]
[373399503,1752985854880,-520.0,0.00019287,2]
[373399504,1752985854889,-480.0,0.00019287,2]
[373399505,1752985854898,-480.0,0.00019287,2]
[373399506,1752985854907,-480.0,0.00019287,2]
[373399507,1752985854917,-480.0,0.00019287,2]
[373399508,1752985854927,-480.0,0.00019287,2]
[373399509,1752985854937,-500.0,0.00019287,2]
[373399510,1752985854947,-520.0,0.00019287,2]
[373399511,1752985854956,-414.15722699,0.00019287,2]
[373399512,1752985854966,-522.00791925,0.00019287,2]
[373399513,1752985854975,-321.62691809,0.00019287,2]
[373399514,1752985854985,-480.0,0.00019287,2]
[373399515,1752985854995,-480.0,0.00019287,2]
[373399516,1752985855005,-420.0,0.00019287,2]
[373399517,1752985855015,-373.96,0.00019287,2]
[373399518,1752985855024,-480.0,0.00019287,2]
[373399519,1752985855033,-480.0,0.00019287,2]
[373399520,1752985855043,-480.0,0.00019287,2]
[373399521,1752985855052,-495.67806951,0.00019287,2]
[373399522,1752985855062,-480.0,0.00019287,2]
[373399523,1752985855071,-480.0,0.00019287,2]
[373399524,1752985855081,-486.67057855,0.00019287,2]
[373399525,1752985855090,-480.0,0.00019287,2]
[373399526,1752985855099,-480.0,0.00019287,2]
[373399527,1752985855109,-224.12,0.00019287,2]
[373399528,1752985855119,-480.0,0.00019287,2]
[373399529,1752985855128,-480.0,0.00019287,2]
[373399530,1752985855138,-480.0,0.00019287,2]
[373399531,1752985855147,-480.0,0.00019287,2]
[373399532,1752985855156,-480.0,0.00019287,2]
[373399533,1752985855166,-151.0,0.00019287,2]
[373399534,1752985855175,-151.0,0.00019287,2]
[373399535,1752985855184,-532.58064719,0.00019287,2]
[373399536,1752985855194,-480.0,0.00019287,2]
[373399537,1752985855203,-480.0,0.00019287,2]
[373399538,1752985855212,-187.61,0.00019287,2]
[373399539,1752985855222,-235.16,0.00019287,2]
[373399540,1752985855231,-151.0,0.00019287,2]
[373399541,1752985855240,-530.16689603,0.00019287,2]
[373399542,1752985855250,-480.0,0.00019287,2]
[373399543,1752985855259,-480.0,0.00019287,2]
[373399544,1752985855268,-803.22,0.00019287,2]
[373399545,1752985855278,-480.0,0.00019287,2]
[373399546,1752985855288,-480.0,0.00019287,2]
[373399547,1752985855304,-377.06301289,0.00019287,2]
[373399548,1752985855313,-480.0,0.00019287,2]
[373399549,1752985855322,-480.0,0.00019287,2]
[373399550,1752985855332,-480.0,0.00019287,2]
[373399551,1752985855350,-480.0,0.00019287,2]
[373399552,1752985855360,-151.0,0.00019287,2]
[373399553,1752985855369,-480.0,0.00019287,2]
[373399554,1752985855379,-480.0,0.00019287,2]
[373399555,1752985855388,-480.0,0.00019287,2]
[373399556,1752985855397,-749.52,0.00019287,2]
[373399557,1752985855407,-480.0,0.00019287,2]
[373399558,1752985855416,-151.0,0.00019287,2]
[373399559,1752985855425,-480.0,0.00019287,2]
[373399560,1752985855434,-480.0,0.00019287,2]
[373399561,1752985855443,-2104.69,0.00019287,2]
[373399562,1752985855453,-151.0,0.00019287,2]
[373399563,1752985855462,-480.0,0.00019287,2]
[373399564,1752985855471,-151.0,0.00019287,2]
[373399565,1752985855481,-480.0,0.00019287,2]
[373399566,1752985855490,-666.9,0.00019287,2]
[373399567,1752985855499,-151.0,0.00019287,2]
[373399568,1752985855509,-465.60325901,0.00019287,2]
[373399569,1752985855518,-532.05800223,0.00019287,2]
[373399570,1752985855527,-480.0,0.00019287,2]
[373399571,1752985855537,-480.0,0.00019287,2]
[373399572,1752985855546,-480.0,0.00019287,2]
[373399573,1752985855555,-480.0,0.00019287,2]
[373399574,1752985855564,-480.0,0.00019287,2]
[373399575,1752985855573,-499.94,0.00019287,2]
[373399576,1752985855582,-480.0,0.00019287,2]
[373399577,1752985855592,-480.0,0.00019287,2]
[373399578,1752985855601,-480.0,0.00019287,2]
[373399579,1752985855610,-480.0,0.00019287,2]
[373399580,1752985855620,-480.0,0.00019287,2]
[373399581,1752985855630,-480.0,0.00019287,2]
[373399582,1752985855639,-151.0,0.00019287,2]
[373399583,1752985855649,-480.0,0.00019287,2]
[373399584,1752985855658,-526.55,0.00019287,2]
[373399585,1752985855668,-1468.98,0.00019287,2]
[373399586,1752985855678,-480.0,0.00019287,2]
[373399587,1752985855687,-579.8,0.00019287,2]
[373399588,1752985855696,-480.0,0.00019287,2]
[373399589,1752985855706,-480.0,0.00019287,2]
[373399590,1752985855715,-520.34,0.00019287,2]
[373399591,1752985855724,-480.0,0.00019287,2]
[373399592,1752985855733,-480.0,0.00019287,2]
[373399593,1752985855742,-480.0,0.00019287,2]
[373399594,1752985855752,-480.0,0.00019287,2]
[373399595,1752985855761,-480.0,0.00019287,2]
[373399596,1752985855771,-538.78,0.00019287,2]
[373399597,1752985855781,-480.0,0.00019287,2]
[373399598,1752985855791,-480.0,0.00019287,2]
[373399599,1752985855800,-480.0,0.00019287,2]
[373399600,1752985855811,-404.30625926,0.00019287,2]
[373399601,1752985857337,-250.0,0.00019178,2]
[373399602,1752985857347,-480.0,0.00019178,2]
[373399603,1752985857355,-500.0,0.00019178,2]
[373399604,1752985857365,-480.0,0.00019178,2]
[373399605,1752985857374,-480.0,0.00019178,2]
[373399606,1752985857383,-500.0,0.00019178,2]
[373399607,1752985857392,-246.6039803,0.00019178,2]
[373399608,1752985857401,-75.69374074,0.00019287,2]
[373399609,1752985857409,-480.0,0.00019287,2]
[373399610,1752985857418,-603.15908011,0.00019287,2]
[373399611,1752985857427,-500.0,0.00019287,2]
[373399612,1752985857436,-480.0,0.00019287,2]
[373399613,1752985857446,-151.0,0.00019287,2]
[373399614,1752985857455,-151.0,0.00019287,2]
[373399615,1752985857464,-2856.63,0.00019287,2]
[373399616,1752985857473,-480.0,0.00019287,2]
[373399617,1752985857482,-480.0,0.00019287,2]
[373399618,1752985857490,-480.0,0.00019287,2]
[373399619,1752985857499,-753.63,0.00019287,2]
[373399620,1752985857509,-480.0,0.00019287,2]
[373399621,1752985857518,-151.0,0.00019287,2]
[373399622,1752985857527,-483.08540763,0.00019287,2]
[373399623,1752985857536,-480.0,0.00019287,2]
[373399624,1752985857545,-151.0,0.00019287,2]
[373399625,1752985857554,-480.0,0.00019287,2]
[373399626,1752985857564,-480.0,0.00019287,2]
[373399627,1752985857573,-520.0,0.00019287,2]
[373399628,1752985857582,-480.0,0.00019287,2]
[373399629,1752985857591,-641.99,0.00019287,2]
[373399630,1752985857600,-480.0,0.00019287,2]
[373399631,1752985857609,-501.16112652,0.00019287,2]
[373399632,1752985857618,-625.44,0.00019287,2]
[373399633,1752985857627,-480.0,0.00019287,2]
[373399634,1752985857636,-572.57,0.00019287,2]
[373399635,1752985857645,-480.0,0.00019287,2]
[373399636,1752985857654,-480.0,0.00019287,2]
[373399637,1752985857663,-480.0,0.00019287,2]
[373399638,1752985857672,-480.0,0.00019287,2]
[373399639,1752985857681,-465.55,0.00019287,2]
[373399640,1752985857691,-480.0,0.00019287,2]
[373399641,1752985857700,-509.02,0.00019287,2]
[373399642,1752985857710,-480.0,0.00019287,2]
[373399643,1752985857719,-151.0,0.00019287,2]
[373399644,1752985857729,-480.0,0.00019287,2]
[373399645,1752985857738,-480.0,0.00019287,2]
[373399646,1752985857748,-480.0,0.00019287,2]
[373399647,1752985857758,-500.0,0.00019287,2]
[373399648,1752985857767,-480.0,0.00019287,2]
[373399649,1752985857776,-480.0,0.00019287,2]
[373399650,1752985857786,-489.01878401,0.00019287,2]
[373399651,1752985857795,-151.0,0.00019287,2]
[373399652,1752985857804,-500.0,0.00019287,2]
[373399653,1752985857814,-480.0,0.00019287,2]
[373399654,1752985857823,-480.0,0.00019287,2]
[373399655,1752985857833,-151.634049,0.00019287,2]
[373399656,1752985857842,-1484.91,0.00019287,2]
[373399657,1752985857851,-480.0,0.00019287,2]
[373399658,1752985857860,-151.0,0.00019287,2]
[373399659,1752985857870,-500.36166912,0.00019287,2]
[373399660,1752985857880,-480.0,0.00019287,2]
[373399661,1752985857889,-480.0,0.00019287,2]
[373399662,1752985857898,-480.0,0.00019287,2]
[373399663,1752985857907,-480.0,0.00019287,2]
[373399664,1752985857916,-480.0,0.00019287,2]
[373399665,1752985857927,-480.0,0.00019287,2]
[373399666,1752985857938,-628.47,0.00019287,2]
[373399667,1752985857947,-480.0,0.00019287,2]
[373399668,1752985857956,-453.5018036,0.00019287,2]
[373399669,1752985857965,-480.0,0.00019287,2]
[373399670,1752985857975,-243.32726017,0.00019287,2]
[373399671,1752985857983,-524.77,0.00019287,2]
[373399672,1752985857992,-480.0,0.00019287,2]
[373399673,1752985858001,-480.0,0.00019287,2]
[373399674,1752985858011,-539.03262114,0.00019287,2]
[373399675,1752985858020,-164.53939102,0.00019287,2]
[373399676,1752985858029,-480.0,0.00019287,2]
[373399677,1752985858038,-628.8,0.00019287,2]
[373399678,1752985858048,-480.0,0.00019287,2]
[373399679,1752985858057,-151.0,0.00019287,2]
[373399680,1752985858067,-480.0,0.00019287,2]
[373399681,1752985858076,-480.0,0.00019287,2]
[373399682,1752985858085,-151.0,0.00019287,2]
[373399683,1752985858094,-480.0,0.00019287,2]
[373399684,1752985858103,-480.0,0.00019287,2]
[373399685,1752985858112,-480.0,0.00019287,2]
[373399686,1752985858121,-805.74,0.00019287,2]
[373399687,1752985858130,-480.0,0.00019287,2]
[373399688,1752985858140,-480.0,0.00019287,2]
[373399689,1752985858149,-480.0,0.00019287,2]
[373399690,1752985858158,-480.0,0.00019287,2]
[373399691,1752985858167,-533.94321968,0.00019287,2]
[373399692,1752985858176,-480.0,0.00019287,2]
[373399693,1752985858185,-488.33,0.00019287,2]
[373399694,1752985858195,-665.2,0.00019287,2]
[373399695,1752985858204,-480.0,0.00019287,2]
[373399696,1752985858213,-480.0,0.00019287,2]
[373399697,1752985858222,-480.0,0.00019287,2]
[373399698,1752985858230,-1451.12,0.00019287,2]
[373399699,1752985858239,-480.0,0.00019287,2]
[373399700,1752985858249,-580.75,0.00019287,2]
[373399701,1752985858258,-480.0,0.00019287,2]
[373399702,1752985858267,-727.46,0.00019287,2]
[373399703,1752985858276,-500.0,0.00019287,2]
[373399704,1752985858285,-532.21124154,0.00019287,2]
[373399705,1752985858294,-151.0,0.00019287,2]
[373399706,1752985858303,-480.0,0.00019287,2]
[373399707,1752985858312,-480.0,0.00019287,2]
[373399708,1752985858321,-480.0,0.00019287,2]
[373399709,1752985858330,-669.45,0.00019287,2]
[373399710,1752985858339,-480.0,0.00019287,2]
[373399711,1752985858348,-480.0,0.00019287,2]
[373399712,1752985858357,-551.3,0.00019287,2]
[373399713,1752985858366,-953.31,0.00019287,2]
[373399714,1752985858375,-1005.69,0.00019287,2]
[373399715,1752985858384,-536.52836743,0.00019287,2]
[373399716,1752985858393,-502.9,0.00019287,2]
[373399717,1752985858402,-480.0,0.00019287,2]
[373399718,1752985858411,-500.0,0.00019287,2]
[373399719,1752985858419,-526.66366482,0.00019287,2]
[373399720,1752985858428,-480.0,0.00019287,2]
[373399721,1752985858437,-563.65,0.00019287,2]
[373399722,1752985858446,-480.0,0.00019287,2]
[373399723,1752985858455,-480.0,0.00019287,2]
[373399724,1752985858464,-480.0,0.00019287,2]
[373399725,1752985858473,-529.06,0.00019287,2]
[373399726,1752985858482,-484.61,0.00019287,2]
[373399727,1752985858491,-225.8901143,0.00019287,2]
[373399728,1752985858500,-500.0,0.00019287,2]
[373399729,1752985858509,-480.0,0.00019287,2]
[373399730,1752985858518,-491.17,0.00019287,2]